Cogmind - Beta 16.1 @@@ ROGUE MODE // 2026.02.21 @ 11:09:45 Player: Gingerlink Result: Self-destructed Performance ------------- Evolutions (2) 1000 Regions Visited (3) 600 Robots Destroyed (54) 270 Value Destroyed (1022) 1022 Prototype IDs (0) 0 Alien Tech Used (0) 0 Bonus (0) 0 TOTAL SCORE: 2892 Bonus ------- None Cogmind --------- Core Integrity 483/550 Matter 86/300 Energy 36/100 System Corruption 0% Temperature Critical (521) Movement Walking (100) Location -8/Materials Parts ------- > --- POWER (1) -------- (None) > --- PROPULSION (4) --- Aluminum Leg VSS Leg VSS Leg > --- UTILITY (2) ------ Large Storage Unit > --- WEAPON (4) ------- Particle Gun Particle Gun Field Laser > --- INVENTORY (15) --- Nuclear Core Large Storage Unit Advanced Visual Processing Unit Improved Light Armor Plating Particle Gun Assault Cannon Assault Cannon Assault Cannon Rocket Launcher Rocket Launcher Improved Grenade Launcher Peak State ------------ > --- POWER ------------ Nuclear Core > --- PROPULSION ------- Aluminum Leg VSS Leg VSS Leg VSS Leg > --- UTILITY ---------- Large Storage Unit Structural Scanner > --- WEAPON ----------- Particle Gun Particle Gun Field Laser Assault Cannon > --- INVENTORY -------- Nuclear Core Large Storage Unit Advanced Visual Processing Unit Improved Light Armor Plating Particle Gun Assault Cannon Assault Cannon Assault Cannon Rocket Launcher Rocket Launcher Improved Grenade Launcher [Rating: 27] Favorites ----------- Power Ion Engine Engine Ion Engine Power Core Nuclear Core Propulsion Aluminum Leg Treads Light Treads Leg Aluminum Leg Utility Structural Scanner Device Structural Scanner Storage Medium Storage Unit Weapon Particle Gun Energy Gun Particle Gun Ballistic Gun Heavy Assault Rifle Ballistic Cannon Assault Cannon Launcher Grenade Launcher Build | -11 -10 -9 -8 ------- Run | Yrd Mat Mat Mat Slots Evolved 4 | . . 2 2 Power . | . . . . Propulsion 2 | . . 1 1 Utility . | . . . . Weapon 2 | . . 1 1 Parts Attached 35 | 5 7 10 13 Power 4 | 1 . 2 1 Engine 3 | 1 . 2 . Core 1 | . . . 1 Reactor . | . . . . Propulsion 10 | 2 1 3 4 Treads 1 | . . . 1 Leg 9 | 2 1 3 3 Wheel . | . . . . Hover . | . . . . Flight . | . . . . Utility 5 | 1 2 . 2 Device 1 | . 1 . . Storage 4 | 1 1 . 2 Processor . | . . . . Hackware . | . . . . Protection . | . . . . Artifact . | . . . . Weapon 16 | 1 4 5 6 Energy Gun 6 | . 2 2 2 Energy Cannon . | . . . . Ballistic Gun 2 | 1 . 1 . Ballistic Cannon 3 | . . 1 2 Launcher 5 | . 2 1 2 Special Weapon . | . . . . Impact Weapon . | . . . . Slashing Weapon . | . . . . Piercing Weapon . | . . . . Special Melee Weapon . | . . . . Unidentified Prototypes . | . . . . Parts Lost 9 | . 1 1 7 Power 1 | . . . 1 Propulsion 4 | . . 1 3 Utility 1 | . . . 1 Weapon 3 | . 1 . 2 Highest Loss Streak 6 | . 1 1 6 To Critical Strikes 1 | . . 1 . Average Backups 8 | 2 6 9 11 Power 1 | . 1 1 1 Propulsion 1 | 1 1 . 1 Utility 1 | . . 2 3 Weapon 5 | . 4 5 5 Tool/Special . | . . . . Unused Backups 12 | . 2 4 6 Power 2 | . . 1 1 Propulsion 2 | . 2 . . Utility 2 | . . . 2 Weapon 6 | . . 3 3 Tool/Special . | . . . . Average Slot Usage (%) 97 | . 95 99 98 Engine 10 | . 14 11 3 Core 1 | . . . 5 Leg 30 | . 28 32 32 Device 11 | . 13 11 9 Storage 11 | . 14 11 9 Energy Gun 20 | . 14 27 18 Ballistic Gun 1 | . . 2 . Ballistic Cannon 2 | . . 2 8 Launcher 5 | . 9 . 8 Peak Build Rating 27 | 5 8 15 27 Average Rating 12 | 3 7 13 22 On Entrance 7 | . 5 8 15 Avg Prop Armor Cover (%) 7 | . . . 7 Naked Turns . | . . . . Heaviest Build 43 | 12 19 29 43 Greatest Support 46 | 20 20 30 46 Greatest Overweight (x) 1 | 1 . . 1 Average Overweight (x) . | . . . . Largest Inventory Capacity 15 | 8 10 10 15 Average Capacity 9 | 6 8 10 13 Most Carried 14 | 4 9 10 14 Average Carried 8 | 2 6 9 11 Final Capacity 15 | 8 10 10 15 Final Carried 11 | 4 9 10 11 Class Distribution -------------------- 40% | Mutant 38% | Skirmisher 20% | Scavenger-Skirmisher Dominant Class ---------------- Mutant | -10/Materials Skirmisher | -9/Materials Skirmisher | -8/Materials Resources | -11 -10 -9 -8 ----------- Run | Yrd Mat Mat Mat Matter Collected 945 | 45 276 398 226 Remotely . | . . . . Salvage Created 957 | . 413 269 275 Parts 92 | . 33 15 44 Haulers Intercepted 1 | . 1 . . Recyclers Shooed 8 | . 6 . 2 Parts Field Recycled . | . . . . Retrieved Matter . | . . . . Parts Self-Destructed . | . . . . Prevented . | . . . . Parts Restored . | . . . . Kills | -11 -10 -9 -8 ------- Run | Yrd Mat Mat Mat Combat Hostiles Destroyed 32 | . 10 11 11 Guns 12 | . 3 8 1 Cannons 1 | . . . 1 AOE 19 | . 7 3 9 Classes Destroyed 10 | . 7 1 2 Worker 4 | . 3 . 1 Builder 13 | . 5 . 8 Hauler 1 | . 1 . . Recycler 1 | . 1 . . Operator 1 | . . . 1 Watcher 2 | . 2 . . Swarmer 15 | . 3 6 6 Grunt 13 | . 7 2 4 Sentry 3 | . . 3 . Hunter 1 | . . . 1 Best Kill Streak 11 | . 6 3 11 Combat Bots Only 4 | . 2 3 4 Max Kills in Single Turn 6 | . 3 2 6 Gunslinging . | . . . . Exploded 3 | . 2 2 3 Melee . | . . . . Uniques/NPCs Destroyed . | . . . . Combat | -11 -10 -9 -8 -------- Run | Yrd Mat Mat Mat Hostile Shots Fired 169 | . 53 42 74 Missed 46 | . 16 12 18 Hits 123 | . 37 30 56 Projectile 123 | . 37 30 56 Critical Strikes 3 | . . 2 1 Damage Taken 1718 | . 522 375 821 Core 220 | . 77 76 67 Absorbed by Shields . | . . . . Core Remaining (%) 83 | 100 69 81 . Volleys Fired 74 | . 37 20 17 Largest 4 | . 2 3 4 Hottest 230 | . 95 195 230 Shots Fired 175 | . 56 60 59 Gun 123 | . 37 57 29 Cannon 16 | . . . 16 Launcher 36 | . 19 3 14 Special . | . . . . Kinetic 24 | . . 8 16 Thermal 115 | . 37 49 29 Explosive 36 | . 19 3 14 Electromagnetic . | . . . . Robot Hit Streak 13 | . 5 13 3 Robot Miss Streak 4 | . 4 3 3 Penetration Max . | . . . . Secondary Targets . | . . . . Shots Hit Robots 68 | . 20 35 13 Core Hits 83 | . 36 18 29 Critical Kills . | . . . . Critical Parts Destroyed . | . . . . Critical Strikes 2 | . 1 1 . Burn 2 | . 1 1 . Melee Attacks . | . . . . Impact . | . . . . Slashing . | . . . . Piercing . | . . . . Sneak Attacks . | . . . . Combat Hostiles . | . . . . Follow-up Attacks . | . . . . Damage Inflicted 3873 | . 1474 657 1742 Guns 954 | . 221 532 201 Cannons 71 | . . . 71 Explosions 2838 | . 1253 125 1460 Melee . | . . . . Ramming 10 | . . . 10 Kinetic 119 | . . 48 71 Thermal 906 | . 221 484 201 Explosive 2838 | . 1253 125 1460 Electromagnetic . | . . . . Impact . | . . . . Slashing . | . . . . Piercing . | . . . . Highest Corruption . | . . . . Average Corruption . | . . . . Corruption Purged . | . . . . Corruption Blocked . | . . . . Overload Shots . | . . . . Overflow Damage 75 | . 37 . 38 Projectiles 7 | . . . 7 Explosions 68 | . 37 . 31 Melee . | . . . . Knockbacks 1 | . . . 1 Impact . | . . . . Kinetic 1 | . . . 1 Secondary . | . . . . Self-Inflicted Damage 306 | . 164 32 110 Shots 10 | . 3 2 5 Rammed . | . . . . Targets Rammed 1 | . . . 1 Kicked 1 | . . . 1 Crushed . | . . . . Highest Temperature 584 | . 100 383 584 Average Temperature 147 | . 35 156 272 Received Heat Transfer 435 | . 120 99 216 Effects 15 | . . 2 13 Shutdowns 1 | . . . 1 Energy Bleed 1 | . . 1 . Interference 2 | . . . 2 Matter Decay 3 | . . 1 2 Short Circuit 2 | . . . 2 Damage (major) 6 | . . . 6 Siege Activations . | . . . . Martial Activations . | . . . . Shielding Activations . | . . . . Robots Disrupted . | . . . . Combat Hostiles . | . . . . Robots Corrupted . | . . . . Combat Hostiles . | . . . . Parts Fried . | . . . . Impact Corruptions . | . . . . Robots Melted . | . . . . Combat Hostiles . | . . . . Parts Melted 7 | . 1 6 . Heat Transferred 2442 | . 703 1258 481 Parts Sabotaged . | . . . . Parts Stolen . | . . . . Parts Stripped . | . . . . Power Chain Reactions . | . . . . Alert | -11 -10 -9 -8 ------- Run | Yrd Mat Mat Mat Maximum Alert Level 1 | . 1 . 1 Low Security (%) 90 | 100 80 100 88 Level 1 9 | . 19 . 11 Level 2 . | . . . . Level 3 . | . . . . Level 4 . | . . . . Level 5 . | . . . . High Security . | . . . . Max Security . | . . . . Peak Influence 258 | . 258 122 253 Initial 89 | . . 89 14 Average 72 | . 97 62 58 Influence Increases 1234 | . 482 319 433 Destroy 0b10 Robot/C 640 | . 200 220 220 Destroy 0b10 Robot/NC 110 | . 60 . 50 Destroy Leader 146 | . 56 60 30 Disable Machine 75 | . 45 . 30 Destroy Structure 233 | . 106 24 103 Lose Combat Pursuer 30 | . 15 15 . Influence Decreases 1009 | . 270 497 242 Entered New Map 143 | . . 123 20 Time Decay 776 | . 260 364 152 Lost Part 90 | . 10 10 70 Squads Dispatched 4 | . 3 1 . Investigation 1 | . 1 . . Extermination . | . . . . Reinforcement 3 | . 2 1 . Assault . | . . . . Garrison . | . . . . Intercept . | . . . . Searches Triggered . | . . . . Construction Impeded . | . . . . Haulers Reinforced . | . . . . Active Scanning Responses . | . . . . Cargo Convoy Interrupts . | . . . . Stealth | -11 -10 -9 -8 --------- Run | Yrd Mat Mat Mat Distress Signals 4 | . 2 . 2 Communications Jammed . | . . . . Distress Signals . | . . . . Times Spotted 54 | . 22 16 16 Peak Tracking Total 7 | . 5 4 7 Tactical Retreats 2 | . 1 1 . Traps | -11 -10 -9 -8 ------- Run | Yrd Mat Mat Mat Traps Triggered 1 | . 1 . . Indirectly . | . . . . Trap Hack Attempts . | . . . . Triggered . | . . . . Disarmed . | . . . . Reprogrammed . | . . . . Reused . | . . . . Traps Extracted . | . . . . Installed . | . . . . Triggered . | . . . . Machines | -11 -10 -9 -8 ---------- Run | Yrd Mat Mat Mat Machines Disabled 8 | . 6 . 2 Max in Single Turn 2 | . 2 . 1 Machines Repaired . | . . . . Machines Dismantled . | . . . . Machines Sabotaged . | . . . . Overloaded Fab Kills . | . . . . Hacking | -11 -10 -9 -8 --------- Run | Yrd Mat Mat Mat Machines Accessed . | . . . . Terminals . | . . . . Fabricators . | . . . . Repair Stations . | . . . . Recycling Units . | . . . . Scanalyzers . | . . . . Garrison Access . | . . . . Total Hacks . | . . . . Successful . | . . . . Failed . | . . . . Catastrophic . | . . . . Database Lockouts . | . . . . Manual . | . . . . Terminals . | . . . . Fabricators . | . . . . Repair Stations . | . . . . Recycling Units . | . . . . Scanalyzers . | . . . . Garrison Access . | . . . . Terminal Hacks . | . . . . Fabricator Hacks . | . . . . Repair Station Hacks . | . . . . Recycling Unit Hacks . | . . . . Scanalyzer . | . . . . Garrison Access Hacks . | . . . . Unauthorized Hacks . | . . . . Terminals . | . . . . Fabricators . | . . . . Repair Stations . | . . . . Recycling Units . | . . . . Scanalyzers . | . . . . Garrison Access . | . . . . Data Cores Recovered . | . . . . Used . | . . . . Hacking Detections . | . . . . Full Trace Events . | . . . . Feedback Events . | . . . . Feedback Blocked . | . . . . Robot Schematics Acquired . | . . . . Robots Built . | . . . . Authchips . | . . . . Time . | . . . . Total Robot Build Rating . | . . . . Part Schematics Acquired . | . . . . Parts Built . | . . . . Authchips . | . . . . Time . | . . . . Total Part Build Rating . | . . . . Part Studies Acquired . | . . . . Parts Repaired . | . . . . Time . | . . . . Parts Recycled . | . . . . Recycled Matter . | . . . . Retrieved Matter . | . . . . Retrieved Components . | . . . . Parts Scanalyzed . | . . . . Part Schematics Acquired . | . . . . Parts Damaged . | . . . . Bothacking | -11 -10 -9 -8 ------------ Run | Yrd Mat Mat Mat Used RIF Installer . | . . . . Robots Hacked . | . . . . Non-combat . | . . . . Combat . | . . . . Robot Hacks Applied . | . . . . Relay Couplers Released . | . . . . Fabnet Peak Effective % . | . . . . Robots Rewired . | . . . . Allies Hacked . | . . . . Hacks Repelled . | . . . . Allies | -11 -10 -9 -8 -------- Run | Yrd Mat Mat Mat Total Allies . | . . . . Largest Group . | . . . . Highest-Rated Group . | . . . . Highest-Rated Ally . | . . . . Total Orders . | . . . . Ally Attacks . | . . . . Total Damage . | . . . . Kills . | . . . . Allies Corrupted . | . . . . Allies Melted . | . . . . Intel | -11 -10 -9 -8 ------- Run | Yrd Mat Mat Mat Active Infowar (turns) 2215 | . 838 879 498 Structural 2215 | . 838 879 498 Robot Analysis Total . | . . . . Derelict Logs Recovered . | . . . . Drone Launches . | . . . . Drone Recoveries . | . . . . Exploration | -11 -10 -9 -8 ------------- Run | Yrd Mat Mat Mat Turns Passed 2342 | 68 892 879 503 Spaces Moved 1559 | 51 598 606 304 Core 9 | 9 . . . Treads . | . . . . Legs 1550 | 42 598 606 304 Wheels . | . . . . Hover . | . . . . Flight . | . . . . Fastest Speed 50 | 50 120 120 97 Average Speed 121 | 111 120 120 129 Slowest Speed 190 | 120 120 120 190 Overloaded Moves . | . . . . Propulsion Burnouts . | . . . . Robots Hopped . | . . . . Potential Cave-ins . | . . . . Cave-ins Triggered . | . . . . Exploration Rate (%) 35 | 3 71 40 27 Regions Visited 3 Branch Regions . Pre-discovered Areas . | . . . . Known Exits Taken . | . . . . Unknown Exits Taken 3 | 1 1 1 . Scrap Searched . | . . . . Spaces Dug 8 | . 8 . . Terrain Destroyed 290 | . 129 23 138 Melee . | . . . . Projectile 6 | . . . 6 AOE 284 | . 129 23 132 Terrain Rammed . | . . . . Walls Destroyed . | . . . . Machines Disabled . | . . . . Actions | -11 -10 -9 -8 --------- Run | Yrd Mat Mat Mat Total 1868 | 59 719 716 374 Wait 136 | . 59 58 19 Move 1556 | 50 597 605 304 Hop . | . . . . Pick Up 32 | 4 11 10 7 Fast Attach 10 | 5 1 2 2 Attach 14 | . 3 4 7 Detach 4 | . 1 . 3 Swap 17 | . 3 6 8 Drop 24 | . 7 11 6 Fire 74 | . 37 20 17 Melee . | . . . . Ram . | . . . . Kick 1 | . . . 1 Crush . | . . . . Escape Stasis . | . . . . Rewire . | . . . . Trap . | . . . . Miscellaneous . | . . . . Route ------- -11/Scrapyard -10/Materials (discovered 4 exits: [*Mat x2] / [*Min] / [*Sub]) -9/Materials (discovered 2 exits: [*Mat] / [*Sto]) -8/Materials History --------- Turn | Location | Event 12 | -11/Scrapyard | Discovered new exit (range 16) 69 | -11/Scrapyard | Entered Materials 317 | -10/Materials | Build established: Mutant 476 | -10/Materials | Discovered new exit (range 14) 595 | -10/Materials | Discovered new exit (range 8) 819 | -10/Materials | Discovered new exit (range 10) 925 | -10/Materials | Discovered new exit (range 11) 961 | -10/Materials | Entered another Materials area 961 | -9/Materials | Evolved 2 slots: Propulsion x1, Weapon x1 1241 | -9/Materials | Build established: Skirmisher 1473 | -9/Materials | Discovered new exit (range 16) 1621 | -9/Materials | Build established: Scavenger-Skirmisher 1670 | -9/Materials | Discovered new exit (range 14) 1840 | -9/Materials | Entered another Materials area 1840 | -8/Materials | Evolved 2 slots: Propulsion x1, Weapon x1 2343 | -8/Materials | Self-destructed Last Messages --------------- Penetrated by Slug. Overheating: Matter decay (-29). G-50 Soldier knocked back. Critical hit (Burn: +37). Overheating: Matter decay (-13). Assault Cannon broken. Overheating: Short circuit. Penetrated by Slug. Overheating: System interference. Particle Gun temporarily disabled. Structural Scanner temporarily disabled. Penetrated by Slug. Broken Assault Cannon destroyed. Field Laser broken. Overheating: Short circuit. Structural Scanner destroyed. Overheating: Particle Gun damaged (-11). Overheating: Aluminum Leg damaged (-9). Overheating: VSS Leg damaged (-17). Overheating: Broken Field Laser damaged (-36). Map ----- +----------------------------------------------------+ | ?????????????????????????????????????????????????? | | ?????????????????????????????????????????????????? | | ?????????????????????????????????????????????????? | | ?????????????????????????????????????????????????? | | ?????????????????????????????????????????????????? | | ???????????#######???????????????????????????????? | | ???????????#######???????####????????????????????? | | ???????????## ???????####????????????????????? | | ???????????## ^ ????????# T ????????????????????? | | ???????????## ???????? ???????????????????? | | ???????????## ##???????? ?????????????????? | | ???????????## ##???????? *[ ?????????????????? | | ?????????## ##????#### [ ????? #????????? | | ##?????## ########## ###?+####????????? | | ######### ####### # ; #### ##????????? | | ####### # ## ##????????? | | ! # " # *= T ##????????? | | ! ##=## = !h[ ##????????? | | !%%%! %= = ###### ??? ##????????? | | * ### # #######??????????????? | | # # ?????????????????????? | | ?#### # # # # # ##g #????????????????????? | | ### """ ######## #*# ##Y###????????????????????? | | ### """ ####### #=# ##????????????????????? | | # """ ##??### # # ##????????????????????? | | # ##??## # # @ ##????????????????????? | | # ####### # # ##????????????????????? | | [ #+#+########### ## # ##????????????????????? | | # # ##????????????????????? | | + + ##????????????????????? | | # ]]] # # ????????????????????? | | ####### ] ##### # ????????????????????? | | " ####### ] ##### # ????????????????????? | | "??????## ### # ????????????????????? | | ####### ### # ????????????????????? | | ######### ######### ????????????????????? | | ## *######### ????????????????????? | | ## %#######???????????????????????? | | # #####???????????????????????? | | "" """ + %% ##???????????????????????? | | "" """ #"" ##???????????????????????? | | "" """ #"T " " ##???????????????????????? | | #"" """ $% ##???????????????????????? | | # """ ##???????????????????????? | | ######## ##???????????????????????? | | #### # ##???????????????????????? | | ??##! # """ """ #### ????????????????????? | | #### ! # """ """ ##+#### ????????????????????? | | #### # """ """ # # ????????????????????? | | ## =# + """ # ????????????????????? | +----------------------------------------------------+ Best States ------------- Heat Dissipation 31 Energy Generation 14 Energy Capacity 265 Matter Stores 300 Matter Capacity 300 Sight Range 16 Terrain Scan Density 10 Evasion (%) 55 Item Schematics ----------------- None Robot Schematics ------------------ None Fabricated ------------ Nothing Repaired ---------- Nothing Studied --------- None Alien Tech Used ----------------- None Achievements -------------- Hey, That's Mine! Sprinter Challenges ------------ None Game ------ Seed DisruptionVariableFrame Manual? 0 Play Time 00:29:47 Cumulative 14.3 hours Start 2026.02.21 @ 10:41:53 End 2026.02.21 @ 11:09:45 Sessions 1 Manual Loads 0 Difficulty Rogue Special Mode None Game No. 29 Rogue 29 Adventurer 0 Explorer 0 Win Type - Total 0 Types 0/0/0/0/0/0/0/0/0/0 Lore% 1 Gallery% 13 Achievement% 9 Wizard Run 0 Options --------- Layout 0 ASCII 0 Keyboard 1 Movement Vi Keybinds 0 Fullscreen 2 Font 24/Smallcaps Map View 76x50 Zoom Use 0% Tactical HUD 0 Map Filters NONE Filters NONE Steam 1 RUN: af85a384-074c-4a5e-ab4f-c97f2160ff3c